Workbook

Sheet Sheet1
A1: 普定县参加“第十二届贵州人才博览会”引才面试成绩及总成绩
A2: 序号 | B2: 姓名 | C2: 面试准考证号 | D2: 报考单位及代码 | E2: 报考岗位及代码 | F2: 笔试总成绩 | G2: 笔试折算后成绩 | H2: 面试成绩 | I2: 面试折算后成绩 | J2: 总成绩
A3: 1 | B3: 保思宇 | C3: 202407060101 | D3: 301普定县宣传文化中心 | E3: 01管理岗位 | H3: 77.00 | I3: =H3 -> 77.00 | J3: =I3 -> 77.00
A4: 2 | B4: 陈清明 | C4: 202407060102 | D4: 301普定县宣传文化中心 | E4: 01管理岗位 | H4: 缺考 | I4: 缺考 | J4: 缺考
A5: 3 | B5: 陈正华 | C5: 202407060103 | D5: 301普定县宣传文化中心 | E5: 01管理岗位 | H5: 77.40 | I5: =H5 -> 77.40 | J5: =I5 -> 77.40
A6: 4 | B6: 邓东东 | C6: 202407060104 | D6: 301普定县宣传文化中心 | E6: 01管理岗位 | H6: 78.80 | I6: 78.80 | J6: 78.80
A7: 5 | B7: 鄂钟炆 | C7: 202407060105 | D7: 301普定县宣传文化中心 | E7: 01管理岗位 | H7: 缺考 | I7: 缺考 | J7: 缺考
A8: 6 | B8: 樊秋香 | C8: 202407060106 | D8: 301普定县宣传文化中心 | E8: 01管理岗位 | H8: 缺考 | I8: 缺考 | J8: 缺考
A9: 7 | B9: 冯雪芬 | C9: 202407060107 | D9: 301普定县宣传文化中心 | E9: 01管理岗位 | H9: 82.40 | I9: 82.40 | J9: 82.40
A10: 8 | B10: 桂豪 | C10: 202407060108 | D10: 301普定县宣传文化中心 | E10: 01管理岗位 | H10: 缺考 | I10: 缺考 | J10: 缺考
A11: 9 | B11: 郭师 | C11: 202407060109 | D11: 301普定县宣传文化中心 | E11: 01管理岗位 | H11: 77.60 | I11: 77.60 | J11: 77.60
A12: 10 | B12: 胡爱容 | C12: 202407060110 | D12: 301普定县宣传文化中心 | E12: 01管理岗位 | H12: 缺考 | I12: 缺考 | J12: 缺考
A13: 11 | B13: 旷路琴 | C13: 202407060111 | D13: 301普定县宣传文化中心 | E13: 01管理岗位 | H13: 57.00 | I13: 57.00 | J13: 57.00
A14: 12 | B14: 雷前进 | C14: 202407060112 | D14: 301普定县宣传文化中心 | E14: 01管理岗位 | H14: 75.20 | I14: 75.20 | J14: 75.20
A15: 13 | B15: 李静平 | C15: 202407060113 | D15: 301普定县宣传文化中心 | E15: 01管理岗位 | H15: 81.60 | I15: 81.60 | J15: 81.60
A16: 14 | B16: 李秋韵 | C16: 202407060114 | D16: 301普定县宣传文化中心 | E16: 01管理岗位 | H16: 缺考 | I16: 缺考 | J16: 缺考
A17: 15 | B17: 李洲乾 | C17: 202407060115 | D17: 301普定县宣传文化中心 | E17: 01管理岗位 | H17: 78.20 | I17: 78.20 | J17: 78.20
A18: 16 | B18: 龙娟 | C18: 202407060116 | D18: 301普定县宣传文化中心 | E18: 01管理岗位 | H18: 78.80 | I18: 78.80 | J18: 78.80
A19: 17 | B19: 罗莎 | C19: 202407060117 | D19: 301普定县宣传文化中心 | E19: 01管理岗位 | H19: 85.60 | I19: 85.60 | J19: 85.60
A20: 18 | B20: 罗霞 | C20: 202407060118 | D20: 301普定县宣传文化中心 | E20: 01管理岗位 | H20: 缺考 | I20: 缺考 | J20: 缺考
A21: 19 | B21: 潘家楠 | C21: 202407060119 | D21: 301普定县宣传文化中心 | E21: 01管理岗位 | H21: 75.20 | I21: 75.20 | J21: 75.20
A22: 20 | B22: 申忠琪 | C22: 202407060120 | D22: 301普定县宣传文化中心 | E22: 01管理岗位 | H22: 缺考 | I22: 缺考 | J22: 缺考
A23: 21 | B23: 沈康 | C23: 202407060121 | D23: 301普定县宣传文化中心 | E23: 01管理岗位 | H23: 76.20 | I23: 76.20 | J23: 76.20
A24: 22 | B24: 田江兰 | C24: 202407060122 | D24: 301普定县宣传文化中心 | E24: 01管理岗位 | H24: 83.60 | I24: 83.60 | J24: 83.60
A25: 23 | B25: 王家涛 | C25: 202407060123 | D25: 301普定县宣传文化中心 | E25: 01管理岗位 | H25: 80.20 | I25: 80.20 | J25: 80.20
A26: 24 | B26: 王勇琰 | C26: 202407060124 | D26: 301普定县宣传文化中心 | E26: 01管理岗位 | H26: 81.20 | I26: 81.20 | J26: 81.20
A27: 25 | B27: 吴平书 | C27: 202407060125 | D27: 301普定县宣传文化中心 | E27: 01管理岗位 | H27: 缺考 | I27: 缺考 | J27: 缺考
A28: 26 | B28: 肖明翠 | C28: 202407060126 | D28: 301普定县宣传文化中心 | E28: 01管理岗位 | H28: 77.40 | I28: 77.40 | J28: 77.40
A29: 27 | B29: 谢婧娟 | C29: 202407060127 | D29: 301普定县宣传文化中心 | E29: 01管理岗位 | H29: 缺考 | I29: 缺考 | J29: 缺考
A30: 28 | B30: 谢婷懿 | C30: 202407060128 | D30: 301普定县宣传文化中心 | E30: 01管理岗位 | H30: 缺考 | I30: 缺考 | J30: 缺考
A31: 29 | B31: 许芝健 | C31: 202407060129 | D31: 301普定县宣传文化中心 | E31: 01管理岗位 | H31: 缺考 | I31: 缺考 | J31: 缺考
A32: 30 | B32: 杨文英 | C32: 202407060130 | D32: 301普定县宣传文化中心 | E32: 01管理岗位 | H32: 缺考 | I32: 缺考 | J32: 缺考
A33: 31 | B33: 杨云云 | C33: 202407060131 | D33: 301普定县宣传文化中心 | E33: 01管理岗位 | H33: 76.20 | I33: 76.20 | J33: 76.20
A34: 32 | B34: 余昌梅 | C34: 202407060132 | D34: 301普定县宣传文化中心 | E34: 01管理岗位 | H34: 81.00 | I34: 81.00 | J34: 81.00
A35: 33 | B35: 张倩倩 | C35: 202407060133 | D35: 301普定县宣传文化中心 | E35: 01管理岗位 | H35: 79.40 | I35: 79.40 | J35: 79.40
A36: 34 | B36: 郑培 | C36: 202407060134 | D36: 301普定县宣传文化中心 | E36: 01管理岗位 | H36: 84.80 | I36: =H36 -> 84.80 | J36: =I36 -> 84.80
A37: 35 | B37: 柏凌梦 | C37: 202407060201 | D37: 302普定县猛登水库管理所 | E37: 01管理岗位 | H37: 82.40 | I37: 82.40 | J37: 82.40
A38: 36 | B38: 陈磊 | C38: 202407060202 | D38: 302普定县猛登水库管理所 | E38: 01管理岗位 | H38: 81.80 | I38: 81.80 | J38: 81.80
A39: 37 | B39: 高田生 | C39: 202407060203 | D39: 302普定县猛登水库管理所 | E39: 01管理岗位 | H39: 76.20 | I39: 76.20 | J39: 76.20
A40: 38 | B40: 龚宇健 | C40: 202407060204 | D40: 302普定县猛登水库管理所 | E40: 01管理岗位 | H40: 86.00 | I40: 86.00 | J40: 86.00
A41: 39 | B41: 桂君莲 | C41: 202407060205 | D41: 302普定县猛登水库管理所 | E41: 01管理岗位 | H41: 80.40 | I41: 80.40 | J41: 80.40
A42: 40 | B42: 郭贵超 | C42: 202407060206 | D42: 302普定县猛登水库管理所 | E42: 01管理岗位 | H42: 80.60 | I42: 80.60 | J42: 80.60
A43: 41 | B43: 胡茂炜 | C43: 202407060207 | D43: 302普定县猛登水库管理所 | E43: 01管理岗位 | H43: 75.00 | I43: 75.00 | J43: 75.00
A44: 42 | B44: 兰奇 | C44: 202407060208 | D44: 302普定县猛登水库管理所 | E44: 01管理岗位 | H44: 76.80 | I44: 76.80 | J44: 76.80
A45: 43 | B45: 李继林 | C45: 202407060209 | D45: 302普定县猛登水库管理所 | E45: 01管理岗位 | H45: 83.20 | I45: 83.20 | J45: 83.20
A46: 44 | B46: 龙启明 | C46: 202407060210 | D46: 302普定县猛登水库管理所 | E46: 01管理岗位 | H46: 缺考 | I46: 缺考 | J46: 缺考
A47: 45 | B47: 罗志远 | C47: 202407060211 | D47: 302普定县猛登水库管理所 | E47: 01管理岗位 | H47: 77.20 | I47: 77.20 | J47: 77.20
A48: 46 | B48: 罗忠平 | C48: 202407060212 | D48: 302普定县猛登水库管理所 | E48: 01管理岗位 | H48: 78.00 | I48: 78.00 | J48: 78.00
A49: 47 | B49: 沈平强 | C49: 202407060213 | D49: 302普定县猛登水库管理所 | E49: 01管理岗位 | H49: 78.40 | I49: 78.40 | J49: 78.40
A50: 48 | B50: 孙权 | C50: 202407060214 | D50: 302普定县猛登水库管理所 | E50: 01管理岗位 | H50: 80.80 | I50: 80.80 | J50: 80.80
A51: 49 | B51: 汤良龙 | C51: 202407060215 | D51: 302普定县猛登水库管理所 | E51: 01管理岗位 | H51: 79.40 | I51: 79.40 | J51: 79.40
A52: 50 | B52: 汪连强 | C52: 202407060216 | D52: 302普定县猛登水库管理所 | E52: 01管理岗位 | H52: 缺考 | I52: 缺考 | J52: 缺考
A53: 51 | B53: 汪勇 | C53: 202407060217 | D53: 302普定县猛登水库管理所 | E53: 01管理岗位 | H53: 78.00 | I53: 78.00 | J53: 78.00
A54: 52 | B54: 谢云芝 | C54: 202407060218 | D54: 302普定县猛登水库管理所 | E54: 01管理岗位 | H54: 缺考 | I54: 缺考 | J54: 缺考
A55: 53 | B55: 杨晨曦 | C55: 202407060219 | D55: 302普定县猛登水库管理所 | E55: 01管理岗位 | H55: 83.40 | I55: 83.40 | J55: 83.40
A56: 54 | B56: 张磊 | C56: 202407060220 | D56: 302普定县猛登水库管理所 | E56: 01管理岗位 | H56: 75.00 | I56: 75.00 | J56: 75.00
A57: 55 | B57: 赵向盼 | C57: 202407060221 | D57: 302普定县猛登水库管理所 | E57: 01管理岗位 | H57: 78.00 | I57: 78.00 | J57: 78.00
A58: 56 | B58: 郑佳顺 | C58: 202407060222 | D58: 302普定县猛登水库管理所 | E58: 01管理岗位 | H58: 80.20 | I58: 80.20 | J58: 80.20
A59: 57 | B59: 朱炜 | C59: 202407060223 | D59: 302普定县猛登水库管理所 | E59: 01管理岗位 | H59: 75.00 | I59: 75.00 | J59: 75.00
A60: 58 | B60: 焦刚 | C60: 202407060224 | D60: 302普定县猛登水库管理所 | E60: 01管理岗位 | H60: 77.20 | I60: 77.20 | J60: 77.20
A61: 59 | B61: 李超 | C61: 202407060225 | D61: 302普定县猛登水库管理所 | E61: 01管理岗位 | H61: 80.00 | I61: 80.00 | J61: 80.00
A62: 60 | B62: 李森标 | C62: 202407060226 | D62: 302普定县猛登水库管理所 | E62: 01管理岗位 | H62: 75.40 | I62: 75.40 | J62: 75.40
A63: 61 | B63: 秦杨 | C63: 202407060227 | D63: 302普定县猛登水库管理所 | E63: 01管理岗位 | H63: 75.20 | I63: 75.20 | J63: 75.20
A64: 62 | B64: 余亮 | C64: 202407060228 | D64: 302普定县猛登水库管理所 | E64: 01管理岗位 | H64: 78.60 | I64: 78.60 | J64: 78.60
A65: 63 | B65: 赵先鹏 | C65: 202407060229 | D65: 302普定县猛登水库管理所 | E65: 01管理岗位 | H65: 缺考 | I65: 缺考 | J65: 缺考
A66: 64 | B66: 李昌宇 | C66: 202407060301 | D66: 303普定县棚户区改造办公室 | E66: 01专业技术岗位 | F66: 116.27 | G66: =F66/1.5*60% -> 46.51 | H66: 75.00 | I66: 30.00 | J66: 76.51
A67: 65 | B67: 何润发 | C67: 202407060302 | D67: 303普定县棚户区改造办公室 | E67: 01专业技术岗位 | F67: 115.85 | G67: =F67/1.5*60% -> 46.34 | H67: 82.00 | I67: 32.80 | J67: 79.14
A68: 66 | B68: 赵林林 | C68: 202407060303 | D68: 303普定县棚户区改造办公室 | E68: 01专业技术岗位 | F68: 114.09 | G68: =F68/1.5*60% -> 45.64 | H68: 77.60 | I68: 31.04 | J68: 76.68
A69: 67 | B69: 董选贤 | C69: 202407060304 | D69: 304普定县机构编制政务信息管理中心 | E69: 01管理岗位 | H69: 77.40 | I69: =H69 -> 77.40 | J69: =I69 -> 77.40
A70: 68 | B70: 何芝垒 | C70: 202407060305 | D70: 304普定县机构编制政务信息管理中心 | E70: 01管理岗位 | H70: 78.40 | I70: 78.40 | J70: 78.40
A71: 69 | B71: 李蓉蓉 | C71: 202407060306 | D71: 304普定县机构编制政务信息管理中心 | E71: 01管理岗位 | H71: 78.60 | I71: 78.60 | J71: 78.60
A72: 70 | B72: 李晓芳 | C72: 202407060307 | D72: 304普定县机构编制政务信息管理中心 | E72: 01管理岗位 | H72: 缺考 | I72: 缺考 | J72: 缺考
A73: 71 | B73: 王堃 | C73: 202407060308 | D73: 304普定县机构编制政务信息管理中心 | E73: 01管理岗位 | H73: 77.80 | I73: 77.80 | J73: 77.80
A74: 72 | B74: 吴宏玉 | C74: 202407060309 | D74: 304普定县机构编制政务信息管理中心 | E74: 01管理岗位 | H74: 84.60 | I74: 84.60 | J74: 84.60
A75: 73 | B75: 杨燿煇 | C75: 202407060310 | D75: 304普定县机构编制政务信息管理中心 | E75: 01管理岗位 | H75: 缺考 | I75: 缺考 | J75: 缺考
A76: 74 | B76: 张议沙 | C76: 202407060311 | D76: 304普定县机构编制政务信息管理中心 | E76: 01管理岗位 | H76: 缺考 | I76: 缺考 | J76: 缺考
A77: 75 | B77: 庄忠瑶 | C77: 202407060312 | D77: 304普定县机构编制政务信息管理中心 | E77: 01管理岗位 | H77: 80.00 | I77: 80.00 | J77: 80.00
A78: 76 | B78: 王星星 | C78: 202407060313 | D78: 304普定县机构编制政务信息管理中心 | E78: 01管理岗位 | H78: 83.20 | I78: 83.20 | J78: 83.20
A79: 77 | B79: 杨棱 | C79: 202407060314 | D79: 304普定县机构编制政务信息管理中心 | E79: 01管理岗位 | H79: 79.40 | I79: 79.40 | J79: 79.40
A80: 78 | B80: 马龙生 | C80: 202407060315 | D80: 305普定县不动产登记中心 | E80: 01专业技术岗位 | F80: 117.11 | G80: =F80/1.5*60% -> 46.84 | H80: 78.40 | I80: 31.36 | J80: 78.20
A81: 79 | B81: 朱光辉 | C81: 202407060316 | D81: 305普定县不动产登记中心 | E81: 01专业技术岗位 | F81: 116.56 | G81: =F81/1.5*60% -> 46.62 | H81: 80.40 | I81: 32.16 | J81: 78.78
A82: 80 | B82: 罗成成 | C82: 202407060317 | D82: 305普定县不动产登记中心 | E82: 01专业技术岗位 | F82: 113.69 | G82: =F82/1.5*60% -> 45.48 | H82: 78.40 | I82: 31.36 | J82: 76.84
A83: 81 | B83: 程达仁 | C83: 202407060318 | D83: 306普定县交通运输事业发展中心 | E83: 01专业技术岗位 | H83: 75.00 | I83: 75.00 | J83: 75.00
A84: 82 | B84: 邓成伟 | C84: 202407060319 | D84: 306普定县交通运输事业发展中心 | E84: 01专业技术岗位 | H84: 77.80 | I84: 77.80 | J84: 77.80
A85: 83 | B85: 刘腾龙 | C85: 202407060320 | D85: 306普定县交通运输事业发展中心 | E85: 01专业技术岗位 | H85: 缺考 | I85: 缺考 | J85: 缺考
A86: 84 | B86: 龙光裕 | C86: 202407060321 | D86: 306普定县交通运输事业发展中心 | E86: 01专业技术岗位 | H86: 缺考 | I86: 缺考 | J86: 缺考
A87: 85 | B87: 卢雪峰 | C87: 202407060322 | D87: 306普定县交通运输事业发展中心 | E87: 01专业技术岗位 | H87: 77.80 | I87: 77.80 | J87: 77.80
A88: 86 | B88: 张后丽 | C88: 202407060323 | D88: 306普定县交通运输事业发展中心 | E88: 01专业技术岗位 | H88: 76.60 | I88: 76.60 | J88: 76.60
A89: 87 | B89: 姜浙江 | C89: 202407060324 | D89: 306普定县交通运输事业发展中心 | E89: 01专业技术岗位 | H89: 缺考 | I89: 缺考 | J89: 缺考
A90: 88 | B90: 王小鹏 | C90: 202407060325 | D90: 306普定县交通运输事业发展中心 | E90: 01专业技术岗位 | H90: 78.40 | I90: 78.40 | J90: 78.40
A91: 89 | B91: 陶仁会 | C91: 202407060401 | D91: 308普定县精神病医院 | E91: 01专业技术岗位 | H91: 缺考 | I91: 缺考 | J91: 缺考
A92: 90 | B92: 施启亮 | C92: 202407060402 | D92: 308普定县精神病医院 | E92: 01专业技术岗位 | H92: 77.40 | I92: 77.40 | J92: 77.40
A93: 91 | B93: 柴煜 | C93: 202407060403 | D93: 308普定县精神病医院 | E93: 02专业技术岗位 | H93: 缺考 | I93: 缺考 | J93: 缺考
A94: 92 | B94: 邓乔月 | C94: 202407060404 | D94: 310普定县中医医院 | E94: 01专业技术岗位 | H94: 78.60 | I94: 78.60 | J94: 78.60
A95: 93 | B95: 胡玉露 | C95: 202407060405 | D95: 310普定县中医医院 | E95: 01专业技术岗位 | H95: 缺考 | I95: 缺考 | J95: 缺考
A96: 94 | B96: 李丽娜 | C96: 202407060406 | D96: 310普定县中医医院 | E96: 01专业技术岗位 | H96: 81.00 | I96: 81.00 | J96: 81.00
A97: 95 | B97: 彭文敏 | C97: 202407060407 | D97: 310普定县中医医院 | E97: 01专业技术岗位 | H97: 77.60 | I97: 77.60 | J97: 77.60
A98: 96 | B98: 王守方 | C98: 202407060408 | D98: 310普定县中医医院 | E98: 01专业技术岗位 | H98: 缺考 | I98: 缺考 | J98: 缺考
A99: 97 | B99: 冯德群 | C99: 202407060409 | D99: 310普定县中医医院 | E99: 02专业技术岗位 | H99: 81.60 | I99: 81.60 | J99: 81.60
A100: 98 | B100: 李飞龙 | C100: 202407060410 | D100: 310普定县中医医院 | E100: 02专业技术岗位 | H100: 缺考 | I100: 缺考 | J100: 缺考
A101: 99 | B101: 刘鑫 | C101: 202407060411 | D101: 310普定县中医医院 | E101: 02专业技术岗位 | H101: 76.40 | I101: =H101 -> 76.40 | J101: =I101 -> 76.40
A102: 100 | B102: 潘静涛 | C102: 202407060412 | D102: 310普定县中医医院 | E102: 02专业技术岗位 | H102: 76.40 | I102: 76.40 | J102: 76.40
A103: 101 | B103: 张丹 | C103: 202407060413 | D103: 310普定县中医医院 | E103: 02专业技术岗位 | H103: 79.00 | I103: 79.00 | J103: 79.00
A104: 102 | B104: 杨家丽 | C104: 202407060414 | D104: 310普定县中医医院 | E104: 02专业技术岗位 | H104: 81.20 | I104: 81.20 | J104: 81.20
A105: 103 | B105: 朱菁 | C105: 202407060415 | D105: 310普定县中医医院 | E105: 03专业技术岗位 | H105: 80.20 | I105: 80.20 | J105: 80.20
A106: 104 | B106: 但勇 | C106: 202407060416 | D106: 310普定县中医医院 | E106: 04专业技术岗位 | H106: 79.40 | I106: 79.40 | J106: 79.40
A107: 105 | B107: 姜露 | C107: 202407060417 | D107: 310普定县中医医院 | E107: 04专业技术岗位 | H107: 83.60 | I107: 83.60 | J107: 83.60
A108: 106 | B108: 张光权 | C108: 202407060418 | D108: 310普定县中医医院 | E108: 04专业技术岗位 | H108: 76.40 | I108: 76.40 | J108: 76.40
A109: 107 | B109: 谢小雨 | C109: 202407060419 | D109: 313普定县第二中学 | E109: 01专业技术岗位 | F109: 114.40 | G109: =F109/1.5*60% -> 45.76 | H109: 82.20 | I109: =H109*40% -> 32.88 | J109: =G109+I109 -> 78.64
A110: 108 | B110: 余婷 | C110: 202407060420 | D110: 313普定县第二中学 | E110: 01专业技术岗位 | F110: 108.82 | G110: 43.53 | H110: 缺考 | I110: 缺考 | J110: 43.53
A111: 109 | B111: 张国琦 | C111: 202407060421 | D111: 313普定县第二中学 | E111: 01专业技术岗位 | F111: 104.58 | G111: 41.83 | H111: 79.80 | I111: =H111*40% -> 31.92 | J111: =G111+I111 -> 73.75
A112: 110 | B112: 罗文丽 | C112: 202407060422 | D112: 314普定县第三中学 | E112: 01专业技术岗位 | F112: 114.23 | G112: 45.69 | H112: 86.20 | I112: 34.48 | J112: 80.17
A113: 111 | B113: 王嫒嫒 | C113: 202407060423 | D113: 314普定县第三中学 | E113: 01专业技术岗位 | F113: 108.91 | G113: 43.56 | H113: 80.20 | I113: 32.08 | J113: 75.64
A114: 112 | B114: 张春莲 | C114: 202407060424 | D114: 314普定县第三中学 | E114: 01专业技术岗位 | F114: 107.61 | G114: 43.04 | H114: 87.00 | I114: 34.80 | J114: 77.84
A115: 113 | B115: 陈宇 | C115: 202407060501 | D115: 312普定县实验高级中学 | E115: 01专业技术岗位 | H115: 86.00 | I115: 86.00 | J115: 86.00
A116: 114 | B116: 阮胡娟 | C116: 202407060502 | D116: 312普定县实验高级中学 | E116: 01专业技术岗位 | H116: 缺考 | I116: 缺考 | J116: 缺考
A117: 115 | B117: 安灵 | C117: 202407060503 | D117: 312普定县实验高级中学 | E117: 01专业技术岗位 | H117: 82.60 | I117: 82.60 | J117: 82.60
A118: 116 | B118: 金志万 | C118: 202407060504 | D118: 312普定县实验高级中学 | E118: 01专业技术岗位 | H118: 80.00 | I118: 80.00 | J118: 80.00
A119: 117 | B119: 杨望 | C119: 202407060505 | D119: 312普定县实验高级中学 | E119: 01专业技术岗位 | H119: 76.60 | I119: 76.60 | J119: 76.60
A120: 118 | B120: 尹小星 | C120: 202407060506 | D120: 312普定县实验高级中学 | E120: 01专业技术岗位 | H120: 83.00 | I120: 83.00 | J120: 83.00
A121: 119 | B121: 张松 | C121: 202407060507 | D121: 312普定县实验高级中学 | E121: 01专业技术岗位 | H121: 缺考 | I121: 缺考 | J121: 缺考
A122: 120 | B122: 何源梅 | C122: 202407060508 | D122: 312普定县实验高级中学 | E122: 02专业技术岗位 | H122: 85.20 | I122: 85.20 | J122: 85.20
A123: 121 | B123: 李思璇 | C123: 202407060509 | D123: 312普定县实验高级中学 | E123: 02专业技术岗位 | H123: 88.00 | I123: 88.00 | J123: 88.00
A124: 122 | B124: 罗雪 | C124: 202407060510 | D124: 312普定县实验高级中学 | E124: 02专业技术岗位 | H124: 缺考 | I124: 缺考 | J124: 缺考
A125: 123 | B125: 宿东海 | C125: 202407060511 | D125: 312普定县实验高级中学 | E125: 02专业技术岗位 | H125: 缺考 | I125: 缺考 | J125: 缺考
A126: 124 | B126: 王宏妮 | C126: 202407060512 | D126: 312普定县实验高级中学 | E126: 02专业技术岗位 | H126: 缺考 | I126: 缺考 | J126: 缺考
A127: 125 | B127: 温秦琼 | C127: 202407060513 | D127: 312普定县实验高级中学 | E127: 02专业技术岗位 | H127: 缺考 | I127: 缺考 | J127: 缺考
A128: 126 | B128: 肖冬梅 | C128: 202407060514 | D128: 312普定县实验高级中学 | E128: 02专业技术岗位 | H128: 87.60 | I128: 87.60 | J128: 87.60
A129: 127 | B129: 颜佳丽 | C129: 202407060515 | D129: 312普定县实验高级中学 | E129: 02专业技术岗位 | H129: 78.60 | I129: 78.60 | J129: 78.60
A130: 128 | B130: 张玲 | C130: 202407060516 | D130: 312普定县实验高级中学 | E130: 02专业技术岗位 | H130: 88.00 | I130: 88.00 | J130: 88.00
A131: 129 | B131: 周春艳 | C131: 202407060517 | D131: 312普定县实验高级中学 | E131: 02专业技术岗位 | H131: 82.80 | I131: 82.80 | J131: 82.80
A132: 130 | B132: 陈芳芳 | C132: 202407060518 | D132: 312普定县实验高级中学 | E132: 02专业技术岗位 | H132: 缺考 | I132: 缺考 | J132: 缺考
A133: 131 | B133: 陈刚福 | C133: 202407060519 | D133: 312普定县实验高级中学 | E133: 02专业技术岗位 | H133: 79.40 | I133: =H133 -> 79.40 | J133: =I133 -> 79.40
A134: 132 | B134: 邓唤 | C134: 202407060520 | D134: 312普定县实验高级中学 | E134: 02专业技术岗位 | H134: 84.00 | I134: 84.00 | J134: 84.00
A135: 133 | B135: 杜玉煊 | C135: 202407060521 | D135: 312普定县实验高级中学 | E135: 02专业技术岗位 | H135: 78.20 | I135: 78.20 | J135: 78.20
A136: 134 | B136: 黄诗琳 | C136: 202407060522 | D136: 312普定县实验高级中学 | E136: 02专业技术岗位 | H136: 79.40 | I136: 79.40 | J136: 79.40
A137: 135 | B137: 李鑫悦 | C137: 202407060523 | D137: 312普定县实验高级中学 | E137: 02专业技术岗位 | H137: 79.80 | I137: 79.80 | J137: 79.80
A138: 136 | B138: 罗丽 | C138: 202407060524 | D138: 312普定县实验高级中学 | E138: 02专业技术岗位 | H138: 82.60 | I138: 82.60 | J138: 82.60
A139: 137 | B139: 徐小双 | C139: 202407060525 | D139: 312普定县实验高级中学 | E139: 02专业技术岗位 | H139: 缺考 | I139: 缺考 | J139: 缺考
A140: 138 | B140: 杨倩 | C140: 202407060526 | D140: 312普定县实验高级中学 | E140: 02专业技术岗位 | H140: 87.00 | I140: 87.00 | J140: 87.00
A141: 139 | B141: 林金兰 | C141: 202407060527 | D141: 312普定县实验高级中学 | E141: 02专业技术岗位 | H141: 82.00 | I141: 82.00 | J141: 82.00
A142: 140 | B142: 陈香宇 | C142: 202407060601 | D142: 313普定县第二中学 | E142: 02专业技术岗位 | H142: 缺考 | I142: 缺考 | J142: 缺考
A143: 141 | B143: 邓青青 | C143: 202407060602 | D143: 313普定县第二中学 | E143: 02专业技术岗位 | H143: 77.20 | I143: 77.20 | J143: 77.20
A144: 142 | B144: 黄瑶 | C144: 202407060603 | D144: 313普定县第二中学 | E144: 02专业技术岗位 | H144: 78.20 | I144: 78.20 | J144: 78.20
A145: 143 | B145: 卢林永 | C145: 202407060604 | D145: 313普定县第二中学 | E145: 02专业技术岗位 | H145: 75.40 | I145: 75.40 | J145: 75.40
A146: 144 | B146: 石嘉好 | C146: 202407060605 | D146: 313普定县第二中学 | E146: 02专业技术岗位 | H146: 缺考 | I146: 缺考 | J146: 缺考
A147: 145 | B147: 唐巾沙 | C147: 202407060606 | D147: 313普定县第二中学 | E147: 02专业技术岗位 | H147: 79.60 | I147: 79.60 | J147: 79.60
A148: 146 | B148: 陶江林 | C148: 202407060607 | D148: 313普定县第二中学 | E148: 02专业技术岗位 | H148: 76.20 | I148: 76.20 | J148: 76.20
A149: 147 | B149: 王国燕 | C149: 202407060608 | D149: 313普定县第二中学 | E149: 02专业技术岗位 | H149: 76.60 | I149: 76.60 | J149: 76.60
A150: 148 | B150: 王腾峰 | C150: 202407060609 | D150: 313普定县第二中学 | E150: 02专业技术岗位 | H150: 76.40 | I150: 76.40 | J150: 76.40
A151: 149 | B151: 韦水仙 | C151: 202407060610 | D151: 313普定县第二中学 | E151: 02专业技术岗位 | H151: 缺考 | I151: 缺考 | J151: 缺考
A152: 150 | B152: 伍小念 | C152: 202407060611 | D152: 313普定县第二中学 | E152: 02专业技术岗位 | H152: 缺考 | I152: 缺考 | J152: 缺考
A153: 151 | B153: 张红建 | C153: 202407060612 | D153: 313普定县第二中学 | E153: 02专业技术岗位 | H153: 76.20 | I153: 76.20 | J153: 76.20
A154: 152 | B154: 张兰 | C154: 202407060613 | D154: 313普定县第二中学 | E154: 02专业技术岗位 | H154: 缺考 | I154: 缺考 | J154: 缺考
A155: 153 | B155: 张青翠 | C155: 202407060614 | D155: 313普定县第二中学 | E155: 02专业技术岗位 | H155: 77.00 | I155: 77.00 | J155: 77.00
A156: 154 | B156: 张溯 | C156: 202407060615 | D156: 313普定县第二中学 | E156: 02专业技术岗位 | H156: 79.00 | I156: 79.00 | J156: 79.00
A157: 155 | B157: 周蝶 | C157: 202407060616 | D157: 313普定县第二中学 | E157: 02专业技术岗位 | H157: 74.60 | I157: 74.60 | J157: 74.60
A158: 156 | B158: 周敏 | C158: 202407060617 | D158: 313普定县第二中学 | E158: 02专业技术岗位 | H158: 78.00 | I158: 78.00 | J158: 78.00
A159: 157 | B159: 周云 | C159: 202407060618 | D159: 313普定县第二中学 | E159: 02专业技术岗位 | H159: 缺考 | I159: 缺考 | J159: 缺考
A160: 158 | B160: 陈世珂 | C160: 202407060619 | D160: 313普定县第二中学 | E160: 02专业技术岗位 | H160: 77.40 | I160: 77.40 | J160: 77.40
A161: 159 | B161: 段超超 | C161: 202407060620 | D161: 313普定县第二中学 | E161: 02专业技术岗位 | H161: 81.20 | I161: 81.20 | J161: 81.20
A162: 160 | B162: 黎毅 | C162: 202407060621 | D162: 313普定县第二中学 | E162: 02专业技术岗位 | H162: 78.20 | I162: 78.20 | J162: 78.20
A163: 161 | B163: 刘乐喜 | C163: 202407060622 | D163: 313普定县第二中学 | E163: 02专业技术岗位 | H163: 缺考 | I163: 缺考 | J163: 缺考
A164: 162 | B164: 刘炜秋 | C164: 202407060623 | D164: 313普定县第二中学 | E164: 02专业技术岗位 | H164: 79.20 | I164: 79.20 | J164: 79.20
A165: 163 | B165: 刘芷蔓 | C165: 202407060624 | D165: 313普定县第二中学 | E165: 02专业技术岗位 | H165: 83.40 | I165: 83.40 | J165: 83.40
A166: 164 | B166: 杨盼 | C166: 202407060625 | D166: 313普定县第二中学 | E166: 02专业技术岗位 | H166: 缺考 | I166: 缺考 | J166: 缺考
A167: 165 | B167: 杨月 | C167: 202407060626 | D167: 313普定县第二中学 | E167: 02专业技术岗位 | H167: 缺考 | I167: 缺考 | J167: 缺考
A168: 166 | B168: 朱华 | C168: 202407060627 | D168: 313普定县第二中学 | E168: 02专业技术岗位 | H168: 缺考 | I168: 缺考 | J168: 缺考
A169: 167 | B169: 尤丽 | C169: 202407060628 | D169: 313普定县第二中学 | E169: 02专业技术岗位 | H169: 缺考 | I169: 缺考 | J169: 缺考
